fUSD/lending_fUSD_20250629
["ID","MTS","AMOUNT","RATE_DAILY","PERIOD"]
[368468009,1751187048979,-490.0,0.00027397,3]
[368468011,1751187048988,-490.0,0.00027397,3]
[368468013,1751187048997,-3968.04,0.00027397,3]
[368468015,1751187049007,-219.18491454,0.00027397,3]
[368468017,1751187049017,-490.0,0.00027397,3]
[368468019,1751187049026,-11288.86,0.00027397,3]
[368468021,1751187049035,-490.0,0.00027397,3]
[368468022,1751187049045,-490.0,0.00027397,3]
[368468024,1751187049054,-5973.21,0.00027397,3]
[368468026,1751187049064,-490.0,0.00027397,3]
[368468029,1751187049075,-2552.32,0.00027397,3]
[368468030,1751187049085,-1766.09,0.00027397,3]
[368468032,1751187049095,-490.0,0.00027397,3]
[368468034,1751187049104,-490.0,0.00027397,3]
[368468036,1751187049114,-522.61,0.00027397,3]
[368468038,1751187049123,-490.0,0.00027397,3]
[368468040,1751187049132,-490.0,0.00027397,3]
[368468042,1751187049142,-490.0,0.00027397,3]
[368468044,1751187049151,-490.0,0.00027397,3]
[368468046,1751187049161,-1686.93,0.00027397,3]
[368468048,1751187049170,-445.92955024,0.00027397,3]
[368468049,1751187049179,-2265.71,0.00027397,3]
[368468051,1751187049189,-2836.85,0.00027397,3]
[368468053,1751187049198,-490.0,0.00027397,3]
[368468055,1751187049209,-750.88,0.00027397,3]
[368468057,1751187049219,-490.0,0.00027397,3]
[368468059,1751187049230,-2914.76,0.00027397,3]
[368468061,1751187049239,-1508.1,0.00027397,3]
[368468063,1751187049249,-4260.42,0.00027397,3]
[368468065,1751187049259,-490.0,0.00027397,3]
[368468067,1751187049268,-579.54,0.00027397,3]
[368468069,1751187049278,-490.0,0.00027397,3]
[368468071,1751187049288,-490.0,0.00027397,3]
[368468073,1751187049298,-2913.67,0.00027397,3]
[368468075,1751187049308,-1751.63,0.00027397,3]
[368468077,1751187049317,-490.0,0.00027397,3]
[368468079,1751187049327,-490.0,0.00027397,3]
[368468081,1751187049336,-490.0,0.00027397,3]
[368468083,1751187049345,-1011.77,0.00027397,3]
[368468085,1751187049355,-2597.62,0.00027397,3]
[368468087,1751187049364,-696.61,0.00027397,3]
[368468089,1751187049373,-3030.69,0.00027397,3]
[368468091,1751187049382,-1082.84,0.00027397,3]
[368468093,1751187049391,-719.53,0.00027397,3]
[368468095,1751187049400,-497.78,0.00027397,3]
[368468097,1751187049409,-490.0,0.00027397,3]
[368468099,1751187049419,-1353.87,0.00027397,3]
[368468101,1751187049428,-490.0,0.00027397,3]
[368468103,1751187049437,-490.0,0.00027397,3]
[368468105,1751187049447,-695.06,0.00027397,3]
[368468107,1751187049458,-2030.34,0.00027397,3]
[368468109,1751187049467,-1991.05,0.00027397,3]
[368468110,1751187049476,-2200.4,0.00027397,3]
[368468112,1751187049485,-3392.4,0.00027397,3]
[368468114,1751187049494,-490.0,0.00027397,3]
[368468116,1751187049504,-1466.31,0.00027397,3]
[368468118,1751187049514,-292.60444249,0.00027397,3]
[368468120,1751187049523,-965.17,0.00027397,3]
[368468122,1751187049533,-490.0,0.00027397,3]
[368468124,1751187049542,-1510.82,0.00027397,3]
[368468126,1751187049551,-2655.39,0.00027397,3]
[368468128,1751187049560,-998.05,0.00027397,3]
[368468130,1751187049570,-490.0,0.00027397,3]
[368468132,1751187049579,-2240.85,0.00027397,3]
[368468134,1751187049588,-855.46,0.00027397,3]
[368468136,1751187049597,-3337.27,0.00027397,3]
[368468138,1751187049606,-4035.63,0.00027397,3]
[368468140,1751187049615,-2642.65,0.00027397,3]
[368468142,1751187049624,-714.61,0.00027397,3]
[368468144,1751187049634,-490.0,0.00027397,3]
[368468146,1751187049643,-490.0,0.00027397,3]
[368468148,1751187049652,-1283.37,0.00027397,3]
[368468150,1751187049661,-1347.72,0.00027397,3]
[368468152,1751187049670,-1562.17,0.00027397,3]
[368468154,1751187049679,-1705.38,0.00027397,3]
[368468155,1751187049688,-922.75,0.00027397,3]
[368468157,1751187049697,-490.0,0.00027397,3]
[368468159,1751187049707,-490.0,0.00027397,3]
[368468161,1751187049716,-490.0,0.00027397,3]
[368468163,1751187049725,-579.77,0.00027397,3]
[368468165,1751187049734,-490.0,0.00027397,3]
[368468167,1751187049743,-632.4,0.00027397,3]
[368468169,1751187049753,-490.0,0.00027397,3]
[368468171,1751187049761,-490.0,0.00027397,3]
[368468173,1751187049771,-490.0,0.00027397,3]
[368468175,1751187049780,-4341.33,0.00027397,3]
[368468177,1751187049790,-2539.0,0.00027397,3]
[368468179,1751187049800,-5021.31,0.00027397,3]
[368468181,1751187049810,-607.58,0.00027397,3]
[368468183,1751187049819,-1973.65,0.00027397,3]
[368468185,1751187049829,-11241.88,0.00027397,3]
[368468187,1751187049838,-2530.49,0.00027397,3]
[368468189,1751187049848,-490.0,0.00027397,3]
[368468191,1751187049858,-1307.13,0.00027397,3]
[368468193,1751187049869,-490.0,0.00027397,3]
[368468195,1751187049879,-2268.48,0.00027397,3]
[368468198,1751187049890,-3011.61,0.00027397,3]
[368468200,1751187049900,-490.0,0.00027397,3]
[368468201,1751187049910,-490.0,0.00027397,3]
[368468204,1751187049920,-490.0,0.00027397,3]
[368468206,1751187049930,-2906.62,0.00027397,3]
[368468208,1751187049939,-490.0,0.00027397,3]
[368468210,1751187049949,-1169.54,0.00027397,3]
[368468212,1751187049960,-1327.83,0.00027397,3]
[368468214,1751187049970,-1391.92,0.00027397,3]
[368468216,1751187049979,-490.0,0.00027397,3]
[368468218,1751187049988,-490.0,0.00027397,3]
[368468220,1751187049998,-3724.73,0.00027397,3]
[368468222,1751187050008,-490.0,0.00027397,3]
[368468224,1751187050017,-490.0,0.00027397,3]
[368468226,1751187050026,-1443.56,0.00027397,3]
[368468227,1751187050035,-490.0,0.00027397,3]
[368468229,1751187050045,-1575.72,0.00027397,3]
[368468231,1751187050054,-5024.04,0.00027397,3]
[368468233,1751187050063,-2308.3,0.00027397,3]
[368468235,1751187050072,-490.0,0.00027397,3]
[368468237,1751187050082,-490.0,0.00027397,3]
[368468239,1751187050091,-503.01354813,0.00027397,3]
[368468241,1751187050101,-490.0,0.00027397,3]
[368468243,1751187050110,-490.0,0.00027397,3]
[368468245,1751187050120,-879.17,0.00027397,3]
[368468248,1751187050131,-657.41,0.00027397,3]
[368468250,1751187050141,-490.0,0.00027397,3]
[368468252,1751187050150,-490.0,0.00027397,3]
[368468254,1751187050160,-1627.86,0.00027397,3]
[368468256,1751187050169,-3796.81,0.00027397,3]
[368468258,1751187050179,-495.22296629,0.00027397,3]
[368468260,1751187050188,-490.0,0.00027397,3]
[368468262,1751187050198,-490.0,0.00027397,3]
[368468264,1751187050208,-490.0,0.00027397,3]
[368468266,1751187050217,-490.0,0.00027397,3]
[368468268,1751187050227,-490.0,0.00027397,3]
[368468270,1751187050237,-5857.67,0.00027397,3]
[368468272,1751187050246,-2261.15,0.00027397,3]
[368468274,1751187050256,-490.0,0.00027397,3]
[368468276,1751187050265,-950.57,0.00027397,3]
[368468278,1751187050275,-2484.25,0.00027397,3]
[368468280,1751187050284,-490.0,0.00027397,3]
[368468282,1751187050293,-490.0,0.00027397,3]
[368468284,1751187050302,-490.0,0.00027397,3]
[368468286,1751187050311,-502.66,0.00027397,3]
[368468288,1751187050321,-490.0,0.00027397,3]
[368468290,1751187050331,-5402.36,0.00027397,3]
[368468292,1751187050340,-490.0,0.00027397,3]
[368468294,1751187050350,-1557.41,0.00027397,3]
[368468296,1751187050359,-490.0,0.00027397,3]
[368468298,1751187050369,-490.0,0.00027397,3]
[368468300,1751187050379,-3416.26,0.00027397,3]
[368468302,1751187050388,-17132.81,0.00027397,3]
[368468304,1751187050398,-2790.89,0.00027397,3]
[368468306,1751187050407,-490.0,0.00027397,3]
[368468308,1751187050416,-490.0,0.00027397,3]
[368468310,1751187050425,-504.96,0.00027397,3]
[368468312,1751187050435,-1322.66,0.00027397,3]
[368468314,1751187050445,-490.0,0.00027397,3]
[368468316,1751187050454,-1978.86,0.00027397,3]
[368468318,1751187050463,-1636.15,0.00027397,3]
[368468320,1751187050472,-565.2665772,0.00027397,3]
[368468322,1751187050482,-1149.69,0.00027397,3]
[368468324,1751187050491,-2515.87,0.00027397,3]
[368468326,1751187050500,-490.0,0.00027397,3]
[368468328,1751187050512,-940.86,0.00027397,3]
[368468330,1751187050522,-490.0,0.00027397,3]
[368468332,1751187050531,-598.1,0.00027397,3]
[368468334,1751187050541,-490.0,0.00027397,3]
[368468336,1751187050550,-1998.35,0.00027397,3]
[368468338,1751187050559,-490.0,0.00027397,3]
[368468340,1751187050569,-490.0,0.00027397,3]
[368468342,1751187050579,-490.0,0.00027397,3]
[368468344,1751187050588,-490.0,0.00027397,3]
[368468346,1751187050598,-490.0,0.00027397,3]
[368468348,1751187050607,-490.0,0.00027397,3]
[368468350,1751187050617,-490.0,0.00027397,3]
[368468352,1751187050626,-490.0,0.00027397,3]
[368468354,1751187050636,-4092.1,0.00027397,3]
[368468356,1751187050646,-22702.92,0.00027397,3]
[368468359,1751187050655,-490.0,0.00027397,3]
[368468361,1751187050665,-2113.48,0.00027397,3]
[368468363,1751187050675,-1277.56,0.00027397,3]
[368468365,1751187050684,-5396.43,0.00027397,3]
[368468367,1751187050694,-193.7543234,0.00027397,3]
[368468369,1751187050704,-490.0,0.00027397,3]
[368468371,1751187050713,-490.0,0.00027397,3]
[368468373,1751187050723,-2098.58,0.00027397,3]
[368468375,1751187050733,-1178.38,0.00027397,3]
[368468377,1751187050744,-490.0,0.00027397,3]
[368468379,1751187050754,-2022.52,0.00027397,3]
[368468381,1751187050764,-4386.77,0.00027397,3]
[368468383,1751187050774,-2455.6,0.00027397,3]
[368468385,1751187050783,-490.0,0.00027397,3]
[368468387,1751187050793,-490.0,0.00027397,3]
[368468389,1751187050803,-1704.64,0.00027397,3]
[368468391,1751187050812,-2387.9,0.00027397,3]
[368468393,1751187050821,-1649.12,0.00027397,3]
[368468395,1751187050831,-627.9,0.00027397,3]
[368468397,1751187050841,-499.52,0.00027397,3]
[368468399,1751187050851,-6735.33,0.00027397,3]
[368468401,1751187050865,-490.0,0.00027397,3]
[368468403,1751187050874,-490.0,0.00027397,3]
[368468405,1751187050884,-490.0,0.00027397,3]
[368468407,1751187050893,-1376.64,0.00027397,3]
[368468409,1751187050903,-490.0,0.00027397,3]
[368468412,1751187050913,-490.0,0.00027397,3]
[368468414,1751187050922,-490.0,0.00027397,3]
[368468416,1751187050932,-776.31,0.00027397,3]
[368468418,1751187050941,-982.94,0.00027397,3]
[368468420,1751187050951,-2637.62,0.00027397,3]
[368468422,1751187050961,-2058.3,0.00027397,3]
[368468424,1751187050971,-490.0,0.00027397,3]
[368468426,1751187050980,-1499.77,0.00027397,3]
[368468428,1751187050990,-1065.85,0.00027397,3]
[368468430,1751187050999,-490.0,0.00027397,3]
[368468432,1751187051008,-1106.31,0.00027397,3]
[368468434,1751187051018,-1721.93,0.00027397,3]
[368468436,1751187051027,-2913.48,0.00027397,3]
[368468438,1751187051037,-2259.42,0.00027397,3]
[368468440,1751187051047,-916.07,0.00027397,3]
[368468442,1751187051058,-2416.55,0.00027397,3]
[368468444,1751187051068,-2290.94,0.00027397,3]
[368468446,1751187051078,-490.0,0.00027397,3]
[368468448,1751187051088,-490.0,0.00027397,3]
[368468450,1751187051097,-1001.45,0.00027397,3]
[368468452,1751187051107,-490.0,0.00027397,3]
[368468454,1751187051117,-490.0,0.00027397,3]
[368468456,1751187051127,-490.0,0.00027397,3]
[368468458,1751187051137,-490.0,0.00027397,3]
[368468460,1751187051147,-490.0,0.00027397,3]
[368468462,1751187051156,-490.0,0.00027397,3]
[368468464,1751187051166,-2403.14,0.00027397,3]
[368468466,1751187051176,-2800.43,0.00027397,3]
[368468468,1751187051185,-490.0,0.00027397,3]
[368468470,1751187051195,-1316.24,0.00027397,3]
[368468472,1751187051205,-2176.86,0.00027397,3]
[368468474,1751187051214,-490.0,0.00027397,3]
[368468476,1751187051224,-2397.77,0.00027397,3]
[368468478,1751187051234,-490.0,0.00027397,3]
[368468480,1751187051244,-1164.32,0.00027397,3]
[368468482,1751187051253,-490.0,0.00027397,3]
[368468484,1751187051263,-2243.74,0.00027397,3]
[368468486,1751187051273,-556.32,0.00027397,3]
[368468489,1751187051284,-1661.22,0.00027397,3]
[368468491,1751187051294,-4519.09,0.00027397,3]
[368468493,1751187051303,-490.0,0.00027397,3]
[368468495,1751187051313,-490.0,0.00027397,3]
[368468497,1751187051323,-490.0,0.00027397,3]
[368468499,1751187051333,-490.0,0.00027397,3]
[368468501,1751187051343,-1472.05,0.00027397,3]
[368468503,1751187051352,-4490.8,0.00027397,3]
[368468505,1751187051362,-576.43,0.00027397,3]
[368468506,1751187051372,-1867.63,0.00027397,3]
[368468507,1751187051382,-2613.6,0.00027397,3]
[368468508,1751187051391,-1828.7,0.00027397,3]
[368468509,1751187051401,-490.0,0.00027397,3]
[368468510,1751187051410,-527.31,0.00027397,3]
[368468511,1751187051420,-490.0,0.00027397,3]
[368468512,1751187051430,-2145.98,0.00027397,3]
[368468513,1751187051439,-490.0,0.00027397,3]
[368468514,1751187051449,-490.0,0.00027397,3]
[368468515,1751187051459,-490.0,0.00027397,3]
[368468516,1751187051469,-2625.36,0.00027397,3]
[368468517,1751187051478,-490.0,0.00027397,3]
[368468518,1751187051487,-707.87,0.00027397,3]
[368468519,1751187051497,-1636.61,0.00027397,3]
[368468520,1751187051506,-490.0,0.00027397,3]
[368468521,1751187051515,-490.0,0.00027397,3]
[368468522,1751187051525,-491.54726819,0.00027397,3]
[368468524,1751187051534,-1645.38,0.00027397,3]
[368468526,1751187051544,-1994.66,0.00027397,3]
[368468528,1751187051553,-992.54,0.00027397,3]
[368468530,1751187051563,-2675.06,0.00027397,3]
[368468532,1751187051573,-2682.14,0.00027397,3]
[368468534,1751187051582,-490.0,0.00027397,3]
[368468537,1751187051591,-603.26,0.00027397,3]
[368468538,1751187051603,-1959.22,0.00027397,3]
[368468541,1751187051613,-13159.21,0.00027397,3]
[368468543,1751187051625,-503.77,0.00027397,3]
[368468545,1751187051635,-1803.26,0.00027397,3]
[368468547,1751187051644,-490.0,0.00027397,3]
[368468549,1751187051655,-511.8,0.00027397,3]
[368468551,1751187051664,-648.57,0.00027397,3]
[368468553,1751187051674,-490.0,0.00027397,3]
[368468555,1751187051684,-490.0,0.00027397,3]
[368468557,1751187051693,-3196.84,0.00027397,3]
[368468559,1751187051703,-490.0,0.00027397,3]
[368468561,1751187051713,-490.0,0.00027397,3]
[368468563,1751187051722,-337.47742024,0.00027397,3]
[368468565,1751187051731,-490.0,0.00027397,3]
[368468567,1751187051741,-490.0,0.00027397,3]
[368468569,1751187051750,-490.0,0.00027397,3]
[368468571,1751187051760,-2237.46,0.00027397,3]
[368468573,1751187051770,-1231.54,0.00027397,3]
[368468574,1751187051779,-490.0,0.00027397,3]
[368468576,1751187051789,-2992.23,0.00027397,3]
[368468578,1751187051799,-490.0,0.00027397,3]
[368468580,1751187051809,-231.55531068,0.00027397,3]
[368468582,1751187051818,-490.0,0.00027397,3]
[368468584,1751187051828,-490.0,0.00027397,3]
[368468586,1751187051838,-2417.32,0.00027397,3]
[368468588,1751187051849,-2292.96,0.00027397,3]
[368468590,1751187051861,-490.0,0.00027397,3]
[368468601,1751187052169,-490.0,0.00027397,3]
[368468603,1751187052180,-2195.8,0.00027397,3]
[368468605,1751187052190,-490.0,0.00027397,3]
[368468606,1751187052200,-1907.35,0.00027397,3]
[368468608,1751187052210,-1217.5,0.00027397,3]
[368468610,1751187052219,-3248.72,0.00027397,3]
[368468612,1751187052229,-490.0,0.00027397,3]
[368468614,1751187052239,-919.5,0.00027397,3]
[368468615,1751187052249,-27501.96,0.00027397,3]
[368468616,1751187052259,-1408.98,0.00027397,3]
[368468617,1751187052269,-490.0,0.00027397,3]
[368468618,1751187052278,-490.0,0.00027397,3]
[368468619,1751187052288,-7314.87,0.00027397,3]
[368468620,1751187052298,-490.0,0.00027397,3]
[368468621,1751187052307,-490.0,0.00027397,3]
[368468622,1751187052316,-1001.24,0.00027397,3]
[368468623,1751187052326,-490.0,0.00027397,3]
[368468624,1751187052336,-1302.8,0.00027397,3]
[368468625,1751187052346,-490.0,0.00027397,3]
[368468626,1751187052355,-490.0,0.00027397,3]
[368468627,1751187052366,-1455.38,0.00027397,3]
[368468628,1751187052375,-540.84,0.00027397,3]
[368468629,1751187052386,-490.0,0.00027397,3]
[368468630,1751187052396,-490.0,0.00027397,3]
[368468631,1751187052406,-490.0,0.00027397,2]
[368468632,1751187052415,-1769.89,0.00027397,3]
[368468633,1751187052424,-1729.32,0.00027397,3]
[368468634,1751187052433,-490.0,0.00027397,3]
[368468635,1751187052443,-3146.87,0.00027397,3]
[368468636,1751187052452,-490.0,0.00027397,3]
[368468637,1751187052462,-490.0,0.00027397,3]
[368468638,1751187052471,-490.0,0.00027397,3]
[368468639,1751187052481,-490.0,0.00027397,3]
[368468640,1751187052490,-490.0,0.00027397,3]
[368468641,1751187052499,-490.0,0.00027397,3]
[368468642,1751187052509,-417.11932411,0.00027397,3]
[368468643,1751187052518,-604.79,0.00027397,3]
[368468644,1751187052528,-1206.83,0.00027397,3]
[368468645,1751187052537,-6375.23,0.00027397,3]
[368468646,1751187052548,-490.0,0.00027397,3]
[368468647,1751187052557,-3003.36,0.00027397,3]
[368468648,1751187052567,-622.65,0.00027397,3]
[368468649,1751187052576,-2408.16,0.00027397,3]
[368468650,1751187052586,-2494.99,0.00027397,3]
[368468651,1751187052595,-5398.34,0.00027397,3]
[368468652,1751187052605,-1525.97,0.00027397,3]
[368468653,1751187052614,-843.07,0.00027397,3]
[368468654,1751187052624,-2375.81,0.00027397,3]
[368468655,1751187052633,-2876.73,0.00027397,3]
[368468656,1751187052643,-254.15070485,0.00027397,3]
[368468657,1751187052653,-490.0,0.00027397,3]
[368468658,1751187052663,-490.0,0.00027397,3]
[368468659,1751187052672,-490.0,0.00027397,3]
[368468660,1751187052681,-490.0,0.00027397,3]
[368468661,1751187052691,-490.0,0.00027397,3]
[368468662,1751187052702,-1071.51,0.00027397,3]
[368468663,1751187052712,-496.06,0.00027397,3]
[368468664,1751187052721,-490.0,0.00027397,3]
[368468665,1751187052731,-4774.91,0.00027397,3]
[368468666,1751187052740,-1188.54,0.00027397,3]
[368468667,1751187052750,-1465.92,0.00027397,3]
[368468668,1751187052760,-950.16,0.00027397,3]
[368468669,1751187052770,-183.63,0.00027397,2]
[368468670,1751187052780,-837.0,0.00027397,2]
[368468671,1751187052789,-2111.66649243,0.00027419,2]
[368468672,1751187052799,-170.0,0.00027443,2]
[368468673,1751187052809,-2111.66649243,0.0002748,2]
[368468674,1751187052820,-171.99311108,0.00027484,2]
[368468675,1751187052829,-168.0,0.00027501,2]
[368468676,1751187052840,-2111.66649243,0.00027541,2]
[368468677,1751187052849,-182.0,0.00027554,7]
[368468678,1751187052863,-156.41229016,0.00027571,2]
[368468679,1751187052873,-493.53761538,0.00027571,2]
[368468680,1751187052882,-170.0,0.00027577,2]
[368468681,1751187052891,-4100.0,0.000276,10]
[368468682,1751187052901,-2111.66649243,0.00027601,2]
[368468683,1751187052910,-156.587,0.00027602,2]
[368468684,1751187052920,-152.95574294,0.00027617,2]
[368468685,1751187052929,-391.0,0.00027644,2]
[368468686,1751187052939,-656.0,0.00027644,2]
[368468687,1751187052949,-344.0,0.00027644,2]
[368468688,1751187052959,-1237.26,0.00027645,2]
[368468689,1751187052969,-2111.66649243,0.00027662,2]
[368468690,1751187052979,-321.28315356,0.0002767,10]
[368468691,1751187052988,-973.06,0.0002767,3]
[368468692,1751187052998,-973.06,0.0002767,3]
[368468693,1751187053008,-490.0,0.0002767,3]
[368468694,1751187053017,-490.0,0.0002767,3]
[368468695,1751187053027,-361.5349142,0.0002767,3]
[368468696,1751187053036,-490.0,0.0002767,3]
[368468697,1751187053046,-490.0,0.0002767,3]
[368468698,1751187053055,-490.0,0.0002767,3]
[368468699,1751187053064,-490.0,0.0002767,3]
[368468700,1751187053073,-750.65,0.0002767,3]
[368468701,1751187053082,-490.0,0.0002767,3]
[368468702,1751187053092,-496.27,0.0002767,3]
[368468703,1751187053102,-618.48,0.0002767,3]
[368468704,1751187053112,-618.48,0.0002767,3]
[368468705,1751187053123,-618.48,0.0002767,3]
[368468706,1751187053133,-618.48,0.0002767,3]
[368468707,1751187053143,-618.48,0.0002767,3]
[368468708,1751187053152,-618.48,0.0002767,3]
[368468709,1751187053162,-618.48,0.0002767,3]
[368468710,1751187053172,-618.48,0.0002767,3]
[368468711,1751187053181,-618.48,0.0002767,3]
[368468712,1751187053190,-618.48,0.0002767,3]
[368468713,1751187053201,-618.64,0.0002767,3]
[368468714,1751187053211,-490.0,0.00027671,3]
[368468715,1751187053221,-490.0,0.00027671,3]
[368468716,1751187053230,-654.37,0.00027671,3]
[368468717,1751187053240,-541.37,0.00027671,3]
[368468718,1751187053249,-490.0,0.00027671,3]
[368468719,1751187053259,-769.42,0.00027671,3]
[368468720,1751187053268,-490.0,0.00027671,3]
[368468721,1751187053277,-490.0,0.00027671,3]
[368468722,1751187053287,-513.27,0.00027671,3]
[368468723,1751187053296,-490.0,0.00027671,3]
[368468724,1751187053305,-554.83690679,0.00027671,3]
[368468725,1751187053315,-1721.55,0.00027671,3]
[368468726,1751187053325,-237.74704067,0.00027671,3]
[368468727,1751187053334,-490.0,0.00027671,3]
[368468728,1751187053344,-490.0,0.00027671,3]
[368468729,1751187053354,-564.84,0.00027671,3]
[368468730,1751187053364,-490.0,0.00027671,3]
[368468731,1751187053375,-1634.14,0.00027671,3]
[368468732,1751187053384,-490.0,0.00027671,3]
[368468733,1751187053393,-422.11270134,0.00027671,3]
[368468734,1751187053402,-490.0,0.00027671,3]
[368468735,1751187053411,-490.0,0.00027671,3]
[368468736,1751187053420,-490.0,0.00027671,3]
[368468737,1751187053431,-490.0,0.00027671,3]
[368468738,1751187053441,-490.0,0.00027671,3]
[368468739,1751187053450,-490.0,0.00027671,3]
[368468740,1751187053459,-1094.27,0.00027671,3]
[368468741,1751187053468,-490.0,0.00027671,3]
[368468742,1751187053478,-490.0,0.00027671,3]
[368468743,1751187053487,-3009.703033,0.00027671,3]
[368468744,1751187053496,-490.0,0.00027671,3]
[368468745,1751187053505,-490.0,0.00027671,3]
[368468746,1751187053514,-490.0,0.00027671,3]
[368468747,1751187053524,-490.0,0.00027671,3]
[368468748,1751187053533,-490.0,0.00027671,3]
[368468749,1751187053542,-3277.629546,0.00027671,3]
[368468750,1751187053551,-490.0,0.00027671,3]
[368468751,1751187053562,-856.55,0.00027671,3]
[368468752,1751187053571,-490.0,0.00027671,3]
[368468753,1751187053581,-490.0,0.00027671,3]
[368468754,1751187053590,-490.0,0.00027671,3]
[368468755,1751187053600,-586.81,0.00027671,3]
[368468756,1751187053610,-531.95,0.00027671,3]
[368468757,1751187053621,-2276.254035,0.00027671,3]
[368468758,1751187053630,-490.0,0.00027671,3]
[368468759,1751187053639,-373.178909,0.00027671,3]
[368468760,1751187053648,-490.0,0.00027671,3]
[368468761,1751187053658,-566.87,0.00027671,3]
[368468762,1751187053667,-490.0,0.00027671,3]
[368468763,1751187053677,-490.0,0.00027671,3]
[368468764,1751187053686,-490.0,0.00027671,3]
[368468765,1751187053695,-490.0,0.00027671,3]
[368468766,1751187053704,-490.0,0.00027671,3]
[368468767,1751187053713,-1486.8,0.00027671,3]
[368468768,1751187053722,-514.15,0.00027671,3]
[368468769,1751187053732,-490.0,0.00027671,3]
[368468770,1751187053741,-490.0,0.00027671,3]
[368468771,1751187053751,-490.0,0.00027671,3]
[368468772,1751187053759,-349.34671164,0.00027671,3]
[368468773,1751187053769,-508.24,0.00027671,3]
[368468774,1751187053778,-541.21,0.00027671,3]
[368468775,1751187053787,-490.0,0.00027671,3]
[368468776,1751187053796,-601.27,0.00027671,3]
[368468777,1751187053806,-490.0,0.00027671,3]
[368468778,1751187053815,-794.87,0.00027671,3]
[368468779,1751187053825,-490.0,0.00027671,3]
[368468780,1751187053834,-490.0,0.00027671,3]
[368468781,1751187053843,-1213.34,0.00027671,3]
[368468782,1751187053853,-902.39,0.00027671,3]
[368468783,1751187053864,-490.0,0.00027671,3]
[368468784,1751187053875,-490.0,0.00027671,3]
[368468785,1751187053885,-1042.28,0.00027671,3]
[368468786,1751187053894,-780.53,0.00027671,3]
[368468787,1751187053903,-490.0,0.00027671,3]
[368468788,1751187053913,-527.74,0.00027671,3]
[368468789,1751187053922,-490.0,0.00027671,3]
[368468790,1751187053932,-490.0,0.00027671,3]
[368468791,1751187053941,-490.0,0.00027671,3]
[368468792,1751187053950,-490.0,0.00027671,3]
[368468793,1751187053959,-1495.98,0.00027671,3]
[368468794,1751187053968,-490.0,0.00027671,3]
[368468795,1751187053977,-685.37,0.00027671,3]
[368468796,1751187053987,-1060.67,0.00027671,3]
[368468797,1751187053996,-654.31,0.00027671,3]
[368468798,1751187054005,-490.0,0.00027671,3]
[368468799,1751187054014,-490.0,0.00027671,3]
[368468800,1751187054024,-1386.38,0.00027671,3]
[368468801,1751187054033,-598.68,0.00027671,3]
[368468802,1751187054042,-490.0,0.00027671,3]
[368468803,1751187054052,-527.85,0.00027671,3]
[368468804,1751187054063,-490.0,0.00027671,3]
[368468805,1751187054073,-490.0,0.00027671,3]
[368468806,1751187054082,-490.0,0.00027671,3]